bitfinex/quotes_SOLUSD_20230116
["timestamp","ask_amount","ask_price","bid_price","bid_amount"]
[1673888953754,16.98,23.13,23.117,20.0]
[1673888953966,16.98,23.13,23.116,108.5201]
[1673888954182,16.98,23.13,23.111,32.47]
[1673888954385,32.44,23.129,23.106,5.18492934]
[1673888954807,32.44,23.129,23.105,148.3139]
[1673888954808,32.44,23.129,23.108,27.19311579]
[1673888955240,20.0,23.128,23.108,27.19311579]
[1673888955460,20.0,23.128,23.109,22.24163686]
[1673888955764,32.44,23.129,23.109,22.24163686]
[1673888955983,32.44,23.129,23.11,24.19095735]
[1673888956188,32.44,23.129,23.112,20.0]
[1673888956396,32.44,23.129,23.113,17.0]
[1673888956607,32.44,23.129,23.108,20.0]
[1673888956816,16.98,23.12,23.098,114.97944087]
[1673888957025,16.98,23.11,23.098,108.0474]
[1673888958287,16.98,23.11,23.098,108.0474]
[1673888959539,16.98,23.11,23.099,20.0]
[1673888959983,16.98,23.11,23.1,17.0]
[1673888960178,16.98,23.11,23.101,20.0]
[1673888960396,16.98,23.11,23.102,17.0]
[1673888960593,149.6914,23.119,23.102,17.0]
[1673888960803,117.2314,23.119,23.103,20.0]
[1673888961142,117.2314,23.119,23.105,20.0]
[1673888961342,17.09,23.12,23.106,17.0]
[1673888961671,32.45,23.126,23.106,23.85477107]
[1673888961849,115.8558,23.127,23.107,20.0]
[1673888962067,16.92,23.12,23.108,17.0]
[1673888963238,16.92,23.12,23.109,20.0]
[1673888963427,115.8558,23.127,23.11,17.0]
[1673888963861,115.8558,23.127,23.111,20.0]
[1673888964184,115.8558,23.127,23.113,20.0]
[1673888964389,115.8558,23.127,23.114,17.0]
[1673888965232,20.0,23.126,23.114,17.0]
[1673888965415,16.98,23.12,23.114,17.0]
[1673888965732,115.8558,23.127,23.114,17.0]
[1673888965944,115.8558,23.127,23.115,20.0]
[1673888966157,115.8558,23.127,23.116,17.0]
[1673888966382,16.92,23.13,23.116,17.0]
[1673888967111,32.44,23.129,23.116,17.0]
[1673888967318,16.92,23.13,23.116,21.44305345]
[1673888967525,16.92,23.13,23.116,17.0]
[1673888967748,16.92,23.13,23.117,20.0]
[1673888967941,16.92,23.13,23.118,17.0]
[1673888968152,16.92,23.13,23.119,20.0]
[1673888968366,16.92,23.13,23.12,17.0]
[1673888972378,38.4,23.134,23.12,17.0]
[1673888972782,38.4,23.134,23.121,32.45]
[1673888972992,38.4,23.134,23.123,20.0]
[1673888973415,38.4,23.134,23.124,17.0]
[1673888974073,38.4,23.134,23.125,20.0]
[1673888974261,38.4,23.134,23.126,17.0]
[1673888974471,38.4,23.134,23.127,20.0]
[1673888974683,38.4,23.134,23.128,17.0]
[1673888975111,38.4,23.134,23.129,20.0]
[1673888975430,38.4,23.134,23.13,17.0]
[1673888978787,38.4,23.134,23.133,37.0]
[1673888979197,38.4,23.134,23.133,17.0]
[1673888979509,38.4,23.134,23.132,17.0]
[1673888981941,38.4,23.134,23.133,20.0]
[1673888982138,32.41,23.149,23.134,20.0]
[1673888982350,32.41,23.149,23.135,17.0]
[1673888982579,32.41,23.149,23.123,20.0]
[1673888982786,16.98,23.14,23.123,20.0]
[1673888983190,32.43,23.139,23.123,20.0]
[1673888983833,16.98,23.14,23.123,20.0]
[1673888984451,32.43,23.139,23.123,20.0]
[1673888984884,16.98,23.14,23.123,20.0]
[1673888985091,16.98,23.14,23.122,7.18805656]
[1673888985303,32.43,23.139,23.12,119.5634]
[1673888985723,20.0,23.138,23.116,20.0]
[1673888986043,16.92,23.13,23.112,111.7519]
[1673888986257,16.92,23.13,23.114,114.99130586]
[1673888986881,16.92,23.13,23.116,5.40858342]
[1673888987095,32.43,23.135,23.118,20.0]
[1673888987299,32.43,23.138,23.119,17.0]
[1673888987495,16.98,23.14,23.12,20.0]
[1673888987496,32.44,23.134,23.12,20.0]
[1673888987715,32.43,23.137,23.121,17.0]
[1673888987920,32.44,23.133,23.122,20.0]
[1673888988247,32.43,23.136,23.123,17.0]
[1673888988448,25.51,23.13,23.123,17.0]
[1673888989393,25.51,23.13,23.118,20.0]
[1673888991176,25.51,23.13,23.119,17.0]
[1673888991711,32.43,23.136,23.12,20.0]
[1673888991911,32.43,23.136,23.121,17.0]
[1673888992122,25.51,23.14,23.121,17.0]
[1673888992123,20.0,23.138,23.121,17.0]
[1673888992660,32.43,23.137,23.121,17.0]
[1673888994356,25.27,23.13,23.121,17.0]
[1673888996766,25.27,23.13,23.106,39.00663086]
[1673888996982,20.0,23.136,23.107,27.29544569]
[1673888996983,25.27,23.12,23.107,27.29544569]
[1673888997406,25.51,23.13,23.107,20.0]
[1673888997616,25.51,23.13,23.111,20.0]
[1673888997937,25.51,23.13,23.112,5.36727786]
[1673888998255,25.51,23.13,23.113,17.0]
[1673888998476,25.51,23.13,23.114,20.0]
[1673888998660,25.51,23.13,23.116,20.0]
[1673888998874,25.51,23.13,23.117,17.0]
[1673889003513,25.51,23.13,23.118,20.0]
[1673889003719,25.51,23.13,23.119,17.0]
[1673889004760,32.43,23.138,23.119,17.0]
[1673889004965,139.844,23.14,23.121,7.98261168]
[1673889005181,139.844,23.14,23.122,17.0]
[1673889005379,139.844,23.14,23.123,4.14260171]
[1673889005592,139.844,23.14,23.125,20.0]
[1673889006023,139.844,23.14,23.126,17.0]
[1673889008115,32.43,23.139,23.122,114.0333]
[1673889008556,32.43,23.139,23.123,20.0]
[1673889008750,139.844,23.14,23.123,20.0]
[1673889008957,139.844,23.14,23.124,5.47078754]
[1673889009172,114.334,23.14,23.124,5.47078754]
[1673889009609,114.334,23.14,23.126,20.0]
[1673889010008,114.334,23.14,23.128,20.0]
[1673889010230,114.334,23.14,23.129,17.0]
[1673889011625,32.42,23.148,23.129,17.0]
[1673889011835,32.42,23.148,23.129,21.20215035]
[1673889012056,32.42,23.148,23.13,26.861858]
[1673889012239,32.42,23.148,23.131,17.0]
[1673889012449,32.42,23.148,23.132,20.0]
[1673889012680,32.42,23.148,23.134,20.0]
[1673889012874,32.42,23.148,23.135,17.0]
[1673889013283,32.41,23.149,23.135,17.0]
[1673889013499,32.42,23.147,23.133,17.0]
[1673889013825,52.42,23.148,23.131,17.0]
[1673889014034,32.42,23.146,23.131,17.0]
[1673889014264,32.42,23.147,23.131,17.0]
[1673889014569,20.0,23.146,23.131,17.0]
[1673889014776,16.92,23.14,23.127,118.9188]
[1673889015511,16.92,23.14,23.123,20.0]
[1673889015716,32.43,23.139,23.122,114.0333]
[1673889016123,32.43,23.139,23.123,20.0]
[1673889016364,32.43,23.139,23.122,114.0333]
[1673889016544,20.0,23.138,23.122,114.0333]
[1673889016759,20.0,23.138,23.117,7.62679441]
[1673889016977,32.43,23.137,23.117,7.62679441]
[1673889017177,32.43,23.137,23.117,27.62679441]
[1673889017390,32.43,23.139,23.119,5.45135493]
[1673889017617,32.43,23.136,23.119,21.34286198]
[1673889017805,32.43,23.138,23.121,4.847383]
[1673889018025,32.43,23.139,23.122,17.0]
[1673889018232,32.43,23.139,23.123,20.0]
[1673889018469,32.43,23.139,23.124,17.0]
[1673889022318,134.3929,23.14,23.124,17.0]
[1673889022559,32.43,23.139,23.125,20.0]
[1673889022753,134.3929,23.14,23.126,17.0]
[1673889023380,134.3929,23.14,23.127,20.0]
[1673889023717,117.4729,23.14,23.128,17.0]
[1673889025282,117.4729,23.14,23.126,17.0]
[1673889025803,32.43,23.139,23.126,17.0]
[1673889027166,117.4729,23.14,23.126,17.0]
[1673889028115,32.43,23.139,23.126,17.0]
[1673889028950,117.4729,23.14,23.126,17.0]
[1673889030745,32.43,23.139,23.118,20.0]
[1673889031052,16.99,23.13,23.115,20.0]
[1673889031285,16.99,23.13,23.114,20.0]
[1673889031286,16.99,23.13,23.106,120.47494773]
[1673889031479,32.44,23.129,23.109,4.34058531]
[1673889031802,16.99,23.12,23.109,4.34058531]
[1673889032221,52.44,23.129,23.109,4.34058531]
[1673889032423,20.0,23.129,23.109,4.34058531]
[1673889032632,32.44,23.129,23.111,5.28190742]
[1673889032869,32.44,23.129,23.112,17.0]
[1673889033059,16.99,23.13,23.112,17.0]
[1673889033267,16.99,23.13,23.113,20.0]
[1673889033478,16.99,23.13,23.114,23.35232767]
[1673889033813,16.99,23.13,23.115,20.0]
[1673889034011,16.99,23.13,23.116,17.0]
[1673889035593,32.44,23.129,23.116,17.0]
[1673889036033,32.44,23.129,23.116,20.0]
[1673889036338,32.44,23.129,23.117,17.0]
[1673889037356,32.44,23.129,23.103,52.48]
[1673889037614,32.44,23.129,23.105,25.86282827]
[1673889037786,16.99,23.12,23.107,20.0]
[1673889038841,16.99,23.12,23.11,17.0]
[1673889039052,32.45,23.127,23.11,17.0]
[1673889039273,20.0,23.126,23.11,17.0]
[1673889039674,32.45,23.125,23.11,17.0]
[1673889040427,31.45,23.125,23.111,20.0]
[1673889040613,31.45,23.125,23.112,17.0]
[1673889040825,32.45,23.127,23.112,17.0]
[1673889041035,32.45,23.124,23.112,17.0]
[1673889041254,20.0,23.125,23.11,17.0]
[1673889041491,32.45,23.127,23.11,17.0]
[1673889041708,32.45,23.125,23.11,17.0]
[1673889041905,32.45,23.127,23.11,17.0]
[1673889042656,32.45,23.127,23.107,20.0]
[1673889042866,32.45,23.127,23.103,4.38255059]
[1673889043083,20.0,23.119,23.097,32.49]
[1673889043275,20.0,23.119,23.092,110.7955]
[1673889043486,16.99,23.11,23.092,110.7955]
[1673889043697,16.99,23.11,23.089,20.0]
[1673889043909,20.0,23.108,23.089,20.0]
[1673889044318,32.47,23.107,23.088,113.3317]
[1673889044654,32.47,23.107,23.09,20.0]
[1673889044846,32.47,23.109,23.09,20.0]
[1673889046124,32.47,23.109,23.092,20.0]
[1673889046345,32.47,23.109,23.093,17.0]
[1673889046522,32.47,23.109,23.092,20.0]
[1673889046947,16.99,23.11,23.092,20.0]
[1673889047159,32.47,23.109,23.092,20.0]
[1673889048006,32.47,23.109,23.093,17.0]
[1673889050102,20.0,23.108,23.093,17.0]
[1673889050434,20.0,23.108,23.091,17.0]
[1673889050644,16.99,23.1,23.082,4.03546753]
[1673889050832,16.99,23.1,23.085,113.8487]
[1673889051045,32.49,23.099,23.086,20.0]
[1673889051810,32.49,23.099,23.085,113.8487]
[1673889052003,20.0,23.098,23.078,20.0]
[1673889052430,32.49,23.097,23.077,137.95105964]
[1673889052761,16.92,23.09,23.077,132.344]
[1673889053156,16.92,23.09,23.071,32.52]
[1673889053367,16.92,23.09,23.063,108.573]
[1673889053571,32.5,23.089,23.069,7.51860307]
[1673889053783,16.92,23.09,23.07,20.0]
[1673889054416,16.92,23.09,23.071,32.52]
[1673889054750,16.92,23.09,23.073,20.0]
[1673889055793,16.92,23.09,23.074,22.8471861]
[1673889056000,16.92,23.09,23.075,20.0]
[1673889056330,32.49,23.098,23.077,20.0]
[1673889056519,32.49,23.099,23.078,22.50905444]
[1673889056724,32.49,23.099,23.079,20.0]
[1673889056945,32.49,23.099,23.08,22.2608676]
[1673889057175,32.49,23.099,23.081,20.0]
[1673889057379,32.49,23.099,23.082,17.0]
[1673889057570,16.92,23.09,23.082,17.0]
[1673889058005,16.92,23.09,23.079,20.0]
[1673889059486,16.92,23.09,23.08,17.0]
[1673889059993,16.92,23.09,23.069,32.53]
[1673889060200,16.92,23.09,23.069,20.0]
[1673889060744,32.5,23.089,23.069,20.0]
[1673889062185,16.99,23.08,23.068,20.0]
[1673889062605,32.5,23.087,23.068,20.0]
[1673889062841,32.5,23.088,23.068,20.0]
[1673889063049,32.5,23.086,23.068,25.79250391]
[1673889063252,32.5,23.087,23.068,25.79250391]
[1673889063473,32.5,23.085,23.068,25.79250391]
[1673889063675,21.46196354,23.087,23.068,25.79250391]
[1673889063676,53.96196354,23.086,23.068,20.0]
[1673889064095,21.46196354,23.085,23.068,20.0]
[1673889064508,16.99,23.08,23.068,20.0]
[1673889065465,32.49,23.095,23.068,20.0]
[1673889065663,32.49,23.096,23.07,7.15839869]
[1673889065871,32.49,23.099,23.071,17.0]
[1673889066191,32.49,23.099,23.073,5.60804556]
[1673889066417,32.49,23.099,23.074,17.0]
[1673889066616,32.49,23.099,23.076,6.35306313]
[1673889066831,16.99,23.1,23.077,17.0]
[1673889067046,32.49,23.099,23.079,7.900167]
[1673889067264,32.49,23.099,23.082,7.69117605]
[1673889068109,32.49,23.099,23.083,17.0]
[1673889068506,32.49,23.099,23.082,17.0]
[1673889068712,32.49,23.099,23.079,113.0208]
[1673889068940,20.0,23.098,23.076,20.0]
[1673889069157,20.0,23.098,23.075,118.7497]
[1673889069469,16.99,23.09,23.069,40.05070233]
[1673889069668,16.92,23.08,23.067,117.5229]
[1673889070505,16.92,23.08,23.062,114.74980745]
[1673889070728,16.92,23.08,23.062,108.6544]
[1673889071356,32.51,23.079,23.062,108.6544]
[1673889071577,16.92,23.08,23.062,108.6544]
[1673889071973,52.51,23.079,23.062,108.6544]
[1673889072208,52.51,23.079,23.058,137.5229]
[1673889072410,20.0,23.078,23.058,137.5229]
[1673889073150,20.0,23.078,23.059,32.54]
[1673889073343,16.99,23.07,23.055,55.72372701]
[1673889073555,20.0,23.078,23.059,20.0]
[1673889073766,16.92,23.07,23.054,20.0]
[1673889073981,16.92,23.07,23.053,32.55]
[1673889074401,16.92,23.07,23.053,20.0]
[1673889074614,16.92,23.07,23.051,4.16262592]
[1673889074829,20.0,23.068,23.042,5.41897148]
[1673889075019,20.0,23.068,23.042,123.48577148]
[1673889075020,16.99,23.06,23.042,123.48577148]
[1673889075237,16.99,23.06,23.043,27.72837477]
[1673889075443,16.99,23.06,23.044,5.66888139]
[1673889075878,25.63,23.06,23.046,20.0]
[1673889077129,25.67,23.07,23.047,7.26193504]
[1673889077543,32.53,23.069,23.047,7.26193504]
[1673889077756,32.53,23.069,23.048,27.6271281]
[1673889077971,32.53,23.069,23.049,22.23124376]
[1673889078181,25.67,23.07,23.05,20.0]
[1673889078398,25.67,23.07,23.051,17.0]
[1673889078725,25.67,23.07,23.052,20.0]
[1673889078917,25.67,23.07,23.054,20.0]
[1673889079133,25.67,23.07,23.055,17.0]
[1673889080294,32.52,23.075,23.057,7.80215588]
[1673889080486,111.039,23.076,23.059,20.0]
[1673889080908,32.51,23.078,23.06,17.0]
[1673889081124,32.5,23.085,23.06,24.65524241]
[1673889081331,32.5,23.085,23.061,48.43150705]
[1673889081556,32.5,23.087,23.063,20.0]
[1673889081873,32.5,23.089,23.064,21.82517696]
[1673889082092,25.45,23.09,23.066,5.24952981]
[1673889082401,25.45,23.09,23.068,6.7046549]
[1673889082594,25.45,23.09,23.071,7.13345708]
[1673889083015,25.45,23.09,23.072,32.89150705]
[1673889083217,25.45,23.09,23.073,20.0]
[1673889083428,25.45,23.09,23.074,17.0]
[1673889083643,25.45,23.09,23.074,22.68068659]
[1673889083867,25.45,23.09,23.075,24.66947014]
[1673889084063,32.49,23.097,23.076,21.94369359]
[1673889084272,32.49,23.098,23.077,6.52706925]
[1673889084488,32.49,23.096,23.079,4.54165023]
[1673889084719,32.49,23.099,23.079,4.54165023]
[1673889084928,32.49,23.099,23.08,17.0]
[1673889085133,32.49,23.099,23.081,20.0]
[1673889085450,32.49,23.099,23.082,17.0]
[1673889087661,25.63,23.09,23.077,20.0]
[1673889089848,25.63,23.09,23.078,17.0]
[1673889090070,32.49,23.095,23.078,17.0]
[1673889090263,52.49,23.099,23.079,20.0]
[1673889090469,52.49,23.099,23.08,17.0]
[1673889090690,20.0,23.098,23.08,17.0]
[1673889091115,32.49,23.097,23.08,17.0]
[1673889091440,20.0,23.096,23.08,17.0]
[1673889092167,20.0,23.096,23.077,24.95776934]
[1673889092168,32.49,23.095,23.077,20.0]
[1673889092387,20.0,23.094,23.076,115.5804]
[1673889092784,20.0,23.092,23.076,115.5804]
[1673889093310,20.0,23.092,23.077,17.0]
[1673889094589,20.0,23.092,23.076,115.5804]
[1673889094797,25.45,23.09,23.076,115.5804]
[1673889095644,32.49,23.097,23.077,25.20268307]
[1673889095948,32.49,23.098,23.078,17.0]
[1673889096141,32.49,23.099,23.078,21.57131309]
[1673889096349,25.87,23.1,23.078,37.46282014]
[1673889096567,25.87,23.1,23.08,26.83478429]
[1673889096791,25.87,23.1,23.081,22.77182645]
[1673889096995,25.87,23.1,23.082,20.0]
[1673889097196,25.87,23.1,23.083,17.0]
[1673889097410,25.87,23.1,23.084,20.0]
[1673889097716,25.87,23.1,23.086,20.0]
[1673889097934,25.87,23.1,23.087,17.0]
[1673889098354,25.87,23.1,23.088,20.0]
[1673889098568,32.47,23.107,23.09,20.0]
[1673889098781,32.47,23.108,23.09,20.0]
[1673889098994,32.47,23.109,23.092,20.0]
[1673889099192,32.47,23.107,23.092,20.0]
[1673889099404,32.47,23.108,23.093,17.0]
[1673889099618,25.63,23.11,23.094,20.0]
[1673889099835,25.63,23.11,23.095,17.0]
[1673889100050,25.63,23.11,23.096,20.0]
[1673889100248,32.47,23.113,23.097,17.0]
[1673889100462,32.46,23.116,23.097,17.0]
[1673889100663,25.63,23.11,23.097,17.0]
[1673889105516,32.46,23.116,23.098,20.0]
[1673889105719,32.46,23.118,23.099,17.0]
[1673889105932,32.46,23.115,23.099,17.0]
[1673889106145,32.46,23.117,23.099,17.0]
[1673889106362,32.46,23.118,23.099,17.0]
[1673889106667,25.67,23.11,23.099,17.0]
[1673889106865,25.67,23.11,23.09,7.16544125]
[1673889107075,20.0,23.109,23.09,7.16544125]
[1673889107937,52.47,23.109,23.09,7.16544125]
[1673889108144,52.47,23.109,23.088,231.4191]
[1673889108360,52.47,23.109,23.089,20.0]
[1673889108879,52.47,23.109,23.085,5.13956193]
[1673889109076,20.0,23.108,23.085,7.91617224]
[1673889109288,20.0,23.108,23.085,23.80767929]
[1673889109488,20.0,23.106,23.086,20.0]
[1673889109699,25.45,23.1,23.084,20.0]
[1673889109924,25.45,23.1,23.076,24.34542213]
[1673889110133,20.0,23.098,23.076,24.34542213]
[1673889110349,25.67,23.09,23.076,20.0]
[1673889111173,25.67,23.09,23.074,115.5803]
[1673889111381,25.67,23.09,23.069,24.37952977]
[1673889111606,32.5,23.089,23.069,24.37952977]
[1673889112034,20.0,23.088,23.069,24.37952977]
[1673889112459,32.5,23.087,23.069,24.37952977]
[1673889112673,32.5,23.089,23.071,5.11274957]
[1673889112873,25.67,23.09,23.07,20.0]
[1673889113296,25.67,23.09,23.072,7.15188133]
[1673889113510,394.3,23.112,23.073,20.0]
[1673889113511,32.49,23.097,23.073,20.0]
[1673889113822,32.49,23.099,23.074,7.9262302]
[1673889114030,32.49,23.099,23.074,23.81773725]
[1673889114357,20.0,23.099,23.075,65.41150705]
[1673889114554,25.67,23.09,23.075,17.0]
[1673889114972,32.5,23.089,23.075,17.0]
[1673889115184,20.0,23.088,23.075,17.0]
[1673889116985,32.5,23.089,23.075,17.0]
[1673889117175,25.67,23.09,23.074,20.0]
[1673889117382,25.67,23.09,23.076,20.0]
[1673889117709,32.49,23.097,23.077,21.79536643]
[1673889117918,32.49,23.097,23.078,20.0]
[1673889118134,32.49,23.097,23.079,17.0]
[1673889118876,20.0,23.096,23.079,17.0]
[1673889120245,32.49,23.097,23.079,17.0]
[1673889120658,20.0,23.096,23.078,20.0]
[1673889121061,32.49,23.095,23.078,20.0]
[1673889121588,32.49,23.095,23.079,4.76658008]
[1673889121807,32.49,23.099,23.079,4.76658008]
[1673889122009,32.49,23.099,23.08,17.0]
[1673889122219,20.0,23.098,23.08,17.0]
[1673889122758,20.0,23.096,23.08,17.0]
[1673889123287,20.0,23.096,23.076,27.03240078]
[1673889123288,20.0,23.096,23.076,20.0]
[1673889123496,32.49,23.095,23.076,20.0]
[1673889123919,20.0,23.094,23.075,111.3977]
[1673889124331,20.0,23.094,23.076,20.0]
[1673889126014,32.49,23.095,23.078,20.0]
[1673889126330,32.49,23.095,23.079,17.0]
[1673889127266,20.0,23.096,23.079,17.0]
[1673889127481,25.67,23.09,23.079,17.0]
[1673889128112,25.67,23.09,23.077,17.0]
[1673889128323,25.67,23.09,23.076,17.0]
[1673889128536,32.5,23.089,23.073,20.0]
[1673889129486,32.49,23.097,23.075,20.0]
[1673889129674,32.49,23.098,23.076,7.68958909]
[1673889129879,20.0,23.098,23.077,20.0]
[1673889130094,32.49,23.097,23.077,20.0]
[1673889130316,32.49,23.097,23.078,17.0]
[1673889130535,32.49,23.097,23.079,20.0]
[1673889130742,32.49,23.097,23.08,17.0]
[1673889130960,32.49,23.099,23.081,20.0]
[1673889131157,32.49,23.099,23.082,17.0]
[1673889131791,20.0,23.098,23.082,17.0]
[1673889132526,32.49,23.099,23.082,17.0]
[1673889132719,25.67,23.11,23.083,15.89150705]
[1673889132926,110.8954,23.119,23.084,22.8116245]
[1673889133141,110.8954,23.119,23.085,20.0]
[1673889133480,110.8954,23.119,23.086,23.69661727]
[1673889133686,110.8954,23.119,23.088,5.11320756]
[1673889133687,32.47,23.113,23.088,5.11320756]
[1673889134009,32.47,23.113,23.09,7.58462384]
[1673889134209,32.47,23.113,23.091,37.0]
[1673889134407,32.47,23.113,23.091,69.5]
[1673889135373,32.46,23.117,23.092,22.6972314]
[1673889135572,32.46,23.118,23.094,20.0]
[1673889135891,32.46,23.116,23.095,17.0]
[1673889136107,32.46,23.117,23.096,26.5435305]
[1673889136317,32.46,23.118,23.097,17.0]
[1673889136632,32.46,23.118,23.098,20.0]
[1673889136815,32.46,23.118,23.1,20.0]
[1673889137028,32.46,23.118,23.101,17.0]
[1673889137242,25.59,23.12,23.102,20.0]
[1673889137464,32.46,23.119,23.104,20.0]
[1673889137681,32.46,23.119,23.105,17.0]
[1673889137888,25.59,23.12,23.105,17.0]
[1673889138502,52.46,23.119,23.105,17.0]
[1673889138924,32.46,23.119,23.105,17.0]
[1673889147589,32.45,23.124,23.105,32.93763308]
[1673889147908,32.45,23.125,23.106,20.0]
[1673889148113,32.45,23.125,23.107,17.0]
[1673889148322,32.45,23.125,23.108,20.0]
[1673889148533,151.1988,23.126,23.109,17.0]
[1673889148743,32.45,23.126,23.11,20.0]
[1673889149062,32.45,23.126,23.111,17.0]
[1673889150113,32.45,23.126,23.112,20.0]
[1673889150423,20.0,23.128,23.113,17.0]
[1673889150827,32.45,23.127,23.113,17.0]
[1673889152007,32.44,23.128,23.113,17.0]
[1673889152195,32.44,23.129,23.113,17.0]
[1673889152410,20.0,23.128,23.113,17.0]
[1673889153901,20.0,23.128,23.11,20.0]
[1673889153902,20.0,23.128,23.111,17.0]
[1673889154079,32.45,23.127,23.109,15.93763308]
[1673889154287,20.0,23.126,23.103,32.48]
[1673889154502,20.0,23.126,23.1,93.91763308]
[1673889154822,20.0,23.124,23.1,93.91763308]
[1673889155028,32.45,23.125,23.1,93.91763308]
[1673889155243,32.45,23.126,23.106,35.93763308]
[1673889155554,113.257,23.127,23.107,17.0]
[1673889155980,52.45,23.126,23.107,17.0]
[1673889156186,52.45,23.126,23.107,32.93763308]
[1673889156638,52.45,23.126,23.107,17.0]
[1673889156830,113.257,23.127,23.105,17.0]
[1673889157040,113.257,23.127,23.108,15.93763308]
[1673889157258,32.45,23.126,23.109,17.0]
[1673889157690,32.45,23.126,23.11,20.0]
[1673889157892,32.45,23.126,23.111,17.0]
[1673889158421,32.45,23.126,23.112,20.0]
[1673889158642,32.45,23.126,23.113,17.0]
[1673889159050,113.257,23.127,23.113,17.0]
[1673889160089,113.257,23.127,23.11,20.0]
[1673889160293,20.0,23.125,23.108,15.93763308]
[1673889160733,32.45,23.126,23.108,15.93763308]
[1673889161258,32.45,23.126,23.109,20.0]
[1673889161473,113.257,23.127,23.11,17.0]
[1673889161663,113.257,23.127,23.11,32.93763308]
[1673889161985,32.43,23.135,23.112,20.0]
[1673889162207,32.44,23.129,23.114,20.0]
[1673889162396,32.44,23.129,23.115,17.0]
[1673889164838,32.44,23.129,23.103,52.48]
[1673889165041,20.0,23.128,23.109,20.0]
[1673889165447,20.0,23.126,23.109,20.0]
[1673889165993,32.45,23.125,23.11,17.0]
[1673889166609,20.0,23.125,23.11,17.0]
[1673889166816,32.45,23.124,23.11,17.0]
[1673889167567,32.45,23.125,23.11,17.0]
[1673889168091,32.45,23.126,23.11,17.0]
[1673889168497,52.45,23.126,23.11,17.0]
[1673889168697,32.45,23.126,23.11,17.0]
[1673889168911,32.45,23.126,23.111,20.0]
[1673889169147,32.45,23.126,23.113,20.0]
[1673889169335,32.45,23.126,23.114,17.0]
[1673889170596,32.43,23.135,23.114,17.0]
[1673889170818,20.0,23.135,23.115,20.0]
[1673889171038,32.44,23.134,23.116,17.0]